Cogmind - Beta 9.2 @@@ ROGUE MODE // 2019.11.12 @ 21:10:40 Player: Fleshy Vegetable Bird Result: Destroyed by S-10 Pest with Light Assault Rifle Performance ------------- Evolutions (2) 1000 Regions Visited (5) 1000 Robots Destroyed (74) 370 Value Destroyed (1444) 1444 Prototype IDs (7) 140 Alien Tech Used (0) 0 Bonus (-61) -61 TOTAL SCORE: 3893 Bonus ------- High Alert Combat Kills 12 Friendly Fire -73 Cogmind --------- Core Integrity 0/550 Matter 300/300 Energy 100/100 System Corruption 0% Temperature Cool (0) Movement Core (450) Ox8 Location -8/Materials Parts ------- > --- POWER (1) -------- (None) > --- PROPULSION (3) --- (None) > --- UTILITY (5) ------ Medium Storage Unit Large Storage Unit Advanced Weight Redist. System Advanced Signal Interpreter > --- WEAPON (2) ------- Makeshift Spear > --- INVENTORY (14) --- Improved VTOL Module Improved VTOL Module Improved VTOL Module Improved VTOL Module Advanced Heat Sink Experimental Sensor Array Advanced Terrain Scanner Terrain Scan Processor Melee Analysis Suite Improved ECM Suite System Shield Peak State ------------ > --- POWER ------------ Light Ion Engine > --- PROPULSION ------- Gravmag System Gravmag System Improved VTOL Module > --- UTILITY ---------- Large Storage Unit Large Storage Unit Advanced Weight Redist. System Advanced Signal Interpreter Layered Light Armor Plating > --- WEAPON ----------- Makeshift Spear > --- INVENTORY -------- Improved VTOL Module Improved VTOL Module Advanced Heat Sink Medium Storage Unit Experimental Sensor Array Advanced Terrain Scanner Melee Analysis Suite Improved ECM Suite System Shield [Rating: 32] Favorites ----------- Power Light Ion Engine Engine Light Ion Engine Propulsion Wheel Wheel Wheel Hover Unit Gravmag System Flight Unit Improved VTOL Module Utility Large Storage Unit Device Advanced Sensor Array Storage Large Storage Unit Processor Advanced Signal Interpreter Protection Layered Light Armor Plating Weapon Heavy EM Pulse Gun Energy Gun Heavy EM Pulse Gun Ballistic Gun Assault Rifle Launcher Grenade Launcher Special Weapon Mining Laser Piercing Weapon Makeshift Spear Build | -11 -10 -10 -10 -9 -8 ------- Run | Scr Mat Min Exi Min Mat Slots Evolved 4 | . . . . . 4 Power . | . . . . . . Propulsion 1 | . . . . . 1 Utility 3 | . . . . . 3 Weapon . | . . . . . . Parts Attached 56 | 5 9 2 . 3 37 Power 4 | 1 . . . 1 2 Engine 4 | 1 . . . 1 2 Core . | . . . . . . Reactor . | . . . . . . Propulsion 16 | 2 . 1 . . 13 Treads . | . . . . . . Leg . | . . . . . . Wheel 9 | 2 . 1 . . 6 Hover 4 | . . . . . 4 Flight 3 | . . . . . 3 Utility 12 | 1 2 . . . 9 Device 2 | . . . . . 2 Storage 4 | 1 2 . . . 1 Processor 1 | . . . . . 1 Hackware . | . . . . . . Protection 5 | . . . . . 5 Artifact . | . . . . . . Weapon 24 | 1 7 1 . 2 13 Energy Gun 13 | 1 3 . . 2 7 Energy Cannon . | . . . . . . Ballistic Gun 4 | . 2 . . . 2 Ballistic Cannon . | . . . . . . Launcher 4 | . 1 1 . . 2 Special Weapon 1 | . 1 . . . . Impact Weapon . | . . . . . . Slashing Weapon . | . . . . . . Piercing Weapon 2 | . . . . . 2 Special Melee Weapon . | . . . . . . Unidentified Prototypes 2 | . . . . . 2 Parts Lost 24 | . . . . 1 23 Power 3 | . . . . . 3 Propulsion 10 | . . . . . 10 Utility 4 | . . . . . 4 Weapon 7 | . . . . 1 6 Highest Loss Streak 9 | . . . . 1 9 Average Slot Usage (%) 92 | . 97 100 100 94 85 Engine 11 | . 14 14 14 14 7 Wheel 20 | . 28 28 28 28 10 Hover 3 | . . . . . 8 Device 3 | . . . . . 8 Storage 23 | . 26 28 28 28 17 Processor 3 | . . . . . 8 Protection 3 | . . . . . 8 Energy Gun 12 | . 16 14 14 14 9 Ballistic Gun 1 | . 4 . . . . Launcher 5 | . 6 13 14 8 . Piercing Weapon 1 | . . . . . 3 Naked Turns . | . . . . . . Heaviest Build 48 | 8 41 41 41 43 48 Greatest Support 31 | 20 20 20 20 20 31 Greatest Overweight (x) 14 | . 2 2 2 2 14 Average Overweight (x) 1 | . 1 2 2 1 1 Largest Inventory Capacity 16 | 6 16 16 16 16 16 Average Capacity 15 | 4 15 16 16 16 15 Most Carried 16 | 6 12 15 16 16 16 Average Carried 11 | 3 8 12 15 15 12 Final Capacity 16 | 6 16 16 16 16 14 Final Carried 16 | 5 11 14 16 14 11 Class Distribution -------------------- 100% | Mutant Dominant Class ---------------- Mutant | -10/Materials Mutant | -10/Mines Mutant | -10/Exiles Mutant | -9/Mines Mutant | -8/Materials Resources | -11 -10 -10 -10 -9 -8 ----------- Run | Scr Mat Min Exi Min Mat Matter Collected 1017 | 175 96 221 . 65 460 Remotely . | . . . . . . Salvage Created 1883 | 183 167 190 . 129 1214 Parts 145 | 12 10 16 . 17 90 Haulers Intercepted 1 | . . . . . 1 Recyclers Shooed 3 | 1 . . . . 2 Parts Field Recycled . | . . . . . . Retrieved Matter . | . . . . . . Parts Self-Destructed . | . . . . . . Prevented . | . . . . . . Kills | -11 -10 -10 -10 -9 -8 ------- Run | Scr Mat Min Exi Min Mat Combat Hostiles Destroyed 50 | . 11 3 . 6 30 Melee 11 | . . . . . 11 Guns 11 | . 2 . . 3 6 AOE 28 | . 9 3 . 3 13 Classes Destroyed 10 | 2 4 1 . 1 2 Worker 1 | . . 1 . . . Builder 4 | . . . . . 4 Tunneler 9 | 5 . 2 . . 2 Hauler 1 | . . . . . 1 Recycler 4 | 1 . 1 . . 2 Operator 3 | . 2 . . . 1 Watcher 2 | . 1 . . . 1 Swarmer 30 | . 9 3 . 4 14 Grunt 12 | . 2 . . . 10 Sentry 8 | . . . . 2 6 Best Kill Streak 7 | 3 7 3 . 4 7 Combat Bots Only 6 | . 6 3 . 4 6 Max Kills in Single Turn 4 | 1 3 2 . 3 4 Gunslinging . | . . . . . . Exploded 4 | . 3 2 . 3 4 Melee 1 | . . . . . 1 Uniques/NPCs Destroyed . | . . . . . . Combat | -11 -10 -10 -10 -9 -8 -------- Run | Scr Mat Min Exi Min Mat Damage Taken 3108 | . 222 41 . 97 2748 Core 634 | . 69 15 . . 550 Absorbed by Shields . | . . . . . . Core Remaining (%) 83 | 100 . . . 66 . Volleys Fired 138 | 33 26 14 . 7 58 Largest 2 | 1 2 2 . 2 2 Hottest 100 | 40 100 75 . 75 90 Shots Fired 198 | 33 51 16 . 13 85 Gun 173 | 33 43 14 . 7 76 Cannon . | . . . . . . Launcher 24 | . 7 2 . 6 9 Special 1 | . 1 . . . . Kinetic 36 | . 14 . . . 22 Thermal 55 | 33 22 . . . . Explosive 24 | . 7 2 . 6 9 Electromagnetic 83 | . 8 14 . 7 54 Robot Hit Streak 8 | 3 5 6 . 2 8 Robot Miss Streak 3 | 2 3 2 . 2 2 Penetration Max . | . . . . . . Secondary Targets . | . . . . . . Shots Hit Robots 133 | 18 22 8 . 6 79 Core Hits 104 | 7 21 11 . 10 55 Critical Hits 2 | . . . . . 2 Critical Kills 2 | . . . . . 2 Critical Parts Destroyed . | . . . . . . Melee Attacks 59 | . . . . . 59 Impact . | . . . . . . Slashing . | . . . . . . Piercing 59 | . . . . . 59 Sneak Attacks 4 | . . . . . 4 Combat Hostiles . | . . . . . . Follow-up Attacks . | . . . . . . Damage Inflicted 4146 | 198 602 230 . 308 2808 Guns 1424 | 198 269 145 . 76 736 Cannons . | . . . . . . Explosions 1700 | . 333 85 . 232 1050 Melee 1022 | . . . . . 1022 Ramming . | . . . . . . Kinetic 322 | . 79 . . . 243 Thermal 640 | 198 139 22 . . 281 Explosive 1397 | . 333 63 . 232 769 Electromagnetic 765 | . 51 145 . 76 493 Impact . | . . . . . . Slashing . | . . . . . . Piercing 1022 | . . . . . 1022 Highest Corruption . | . . . . . . Average Corruption . | . . . . . . Corruption Purged . | . . . . . . Overload Shots . | . . . . . . Overflow Damage 39 | . . . . 28 11 Projectiles . | . . . . . . Explosions 39 | . . . . 28 11 Melee . | . . . . . . Knockbacks . | . . . . . . Impact . | . . . . . . Kinetic . | . . . . . . Secondary . | . . . . . . Self-Inflicted Damage 114 | . . . . 17 97 Shots 6 | . . . . 1 5 Rammed . | . . . . . . Targets Rammed . | . . . . . . Kicked . | . . . . . . Crushed . | . . . . . . Highest Temperature 192 | . 66 30 . 91 192 Average Temperature 36 | . 26 7 . 43 47 Received Heat Transfer 747 | . 72 . . 27 648 Siege Activations . | . . . . . . Robots Corrupted 1 | . . . . . 1 Combat Hostiles . | . . . . . . Parts Fried 4 | . . . . . 4 Impact Corruptions . | . . . . . . Robots Melted . | . . . . . . Combat Hostiles . | . . . . . . Parts Melted . | . . . . . . Heat Transferred 1075 | 450 325 50 . . 250 Parts Sabotaged . | . . . . . . Parts Stolen . | . . . . . . Parts Stripped . | . . . . . . Power Chain Reactions 4 | . . 1 . . 3 Missiles Intercepted . | . . . . . . Alert | -11 -10 -10 -10 -9 -8 ------- Run | Scr Mat Min Exi Min Mat Peak Influence 403 | 30 314 119 . 150 403 Average Influence 170 | 13 199 66 . 123 227 Maximum Alert Level 2 | . 1 . . . 2 Low Security (%) 62 | 100 55 100 . 100 37 Level 1 36 | . 44 . . . 62 Level 2 . | . . . . . . Level 3 . | . . . . . . Level 4 . | . . . . . . Level 5 . | . . . . . . High Security . | . . . . . . Max Security . | . . . . . . Squads Dispatched 4 | . 2 . . . 2 Investigation 1 | . . . . . 1 Extermination . | . . . . . . Reinforcement 3 | . 2 . . . 1 Assault . | . . . . . . Garrison . | . . . . . . Intercept . | . . . . . . Construction Impeded 1 | . . . . . 1 Haulers Reinforced . | . . . . . . Stealth | -11 -10 -10 -10 -9 -8 --------- Run | Scr Mat Min Exi Min Mat Distress Signals 6 | . . . . . 6 Communications Jammed . | . . . . . . Distress Signals . | . . . . . . Times Spotted 64 | . 15 3 . 3 43 Peak Tracking Total 7 | . 5 3 . 2 7 Tactical Retreats 3 | . . . . . 3 Traps | -11 -10 -10 -10 -9 -8 ------- Run | Scr Mat Min Exi Min Mat Traps Triggered 2 | . . . . . 2 Indirectly . | . . . . . . Trap Hack Attempts . | . . . . . . Triggered . | . . . . . . Disarmed . | . . . . . . Reprogrammed . | . . . . . . Reused . | . . . . . . Traps Extracted . | . . . . . . Installed . | . . . . . . Triggered 1 | . . . . . 1 Exploded 2 | . . . . . 2 Machines | -11 -10 -10 -10 -9 -8 ---------- Run | Scr Mat Min Exi Min Mat Machines Disabled 6 | . 3 . . 1 2 Max in Single Turn 1 | . 1 . . 1 1 Machines Sabotaged . | . . . . . . Garrisons Compromised . | . . . . . . Overloaded Fab Kills . | . . . . . . Fab Network Shutdowns . | . . . . . . Hacking | -11 -10 -10 -10 -9 -8 --------- Run | Scr Mat Min Exi Min Mat Machines Accessed 14 | . 6 . . . 8 Terminals 12 | . 6 . . . 6 Fabricators . | . . . . . . Repair Stations . | . . . . . . Recycling Units . | . . . . . . Scanalyzers 2 | . . . . . 2 Garrison Access . | . . . . . . Total Hacks 60 | . 31 . . . 29 Successful 38 | . 21 . . . 17 Failed 22 | . 10 . . . 12 Catastrophic 3 | . 2 . . . 1 Database Lockouts . | . . . . . . Manual 49 | . 28 . . . 21 Terminals 55 | . 31 . . . 24 Fabricators . | . . . . . . Repair Stations . | . . . . . . Recycling Units . | . . . . . . Scanalyzers 5 | . . . . . 5 Garrison Access . | . . . . . . Terminal Hacks 13 | . 8 . . . 5 Prototype ID Bank 3 | . 2 . . . 1 Level Access Points 2 | . 1 . . . 1 Branch Access Points 1 | . 1 . . . . Terminal Index 2 | . 1 . . . 1 Repair Station Index 1 | . . . . . 1 Unreport Threat 1 | . 1 . . . . Recall Reinforcements 1 | . 1 . . . . Zone Layout 2 | . 1 . . . 1 Fabricator Hacks . | . . . . . . Repair Station Hacks . | . . . . . . Recycling Unit Hacks . | . . . . . . Scanalyzer 5 | . . . . . 5 Insert Component 2 | . . . . . 2 Analyze 3 | . . . . . 3 Garrison Access Hacks . | . . . . . . Unauthorized Hacks 50 | . 32 . . . 18 Terminals 20 | . 13 . . . 7 Track 7 | . 5 . . . 2 Assimilate 3 | . 3 . . . . Botnet 8 | . 4 . . . 4 Disrupt 1 | . . . . . 1 Operators 1 | . 1 . . . . Fabricators . | . . . . . . Repair Stations . | . . . . . . Recycling Units . | . . . . . . Scanalyzers . | . . . . . . Garrison Access . | . . . . . . Data Cores Recovered . | . . . . . . Used . | . . . . . . Hacking Detections 14 | . 6 . . . 8 Full Trace Events . | . . . . . . Feedback Events . | . . . . . . Feedback Blocked . | . . . . . . Robot Schematics Acquired . | . . . . . . Robots Built . | . . . . . . Matter . | . . . . . . Time . | . . . . . . Total Robot Build Rating . | . . . . . . Part Schematics Acquired 2 | . . . . . 2 Parts Built . | . . . . . . Matter . | . . . . . . Time . | . . . . . . Total Part Build Rating . | . . . . . . Parts Repaired . | . . . . . . Time . | . . . . . . Parts Recycled . | . . . . . . Recycled Matter . | . . . . . . Retrieved Matter . | . . . . . . Retrieved Components . | . . . . . . Parts Scanalyzed 2 | . . . . . 2 Part Schematics Acquired 2 | . . . . . 2 Parts Damaged . | . . . . . . Bothacking | -11 -10 -10 -10 -9 -8 ------------ Run | Scr Mat Min Exi Min Mat Used RIF Installer . | . . . . . . Robots Hacked . | . . . . . . Non-combat . | . . . . . . Combat . | . . . . . . Robot Hacks Applied . | . . . . . . Relay Couplers Released . | . . . . . . Robots Rewired . | . . . . . . Allies Hacked . | . . . . . . Hacks Repelled . | . . . . . . Allies | -11 -10 -10 -10 -9 -8 -------- Run | Scr Mat Min Exi Min Mat Total Allies 2 | . 2 . . . . Largest Group 2 | . 2 2 1 1 1 Highest-Rated Group 20 | . 20 20 10 10 10 Highest-Rated Ally 10 | . 10 10 10 10 10 Total Orders . | . . . . . . Ally Attacks . | . . . . . . Total Damage . | . . . . . . Kills . | . . . . . . Allies Corrupted . | . . . . . . Allies Melted . | . . . . . . Intel | -11 -10 -10 -10 -9 -8 ------- Run | Scr Mat Min Exi Min Mat Robot Analysis Total . | . . . . . . Derelict Logs Recovered 3 | . . 2 . 1 . Drone Launches . | . . . . . . Drone Recoveries . | . . . . . . Exploration | -11 -10 -10 -10 -9 -8 ------------- Run | Scr Mat Min Exi Min Mat Turns Passed 3363 | 137 733 588 138 376 1391 Spaces Moved 2194 | 71 505 545 135 365 573 Core 22 | 7 . . . . 15 Treads . | . . . . . . Legs . | . . . . . . Wheels 2030 | 64 505 545 135 365 416 Hover 83 | . . . . . 83 Flight 59 | . . . . . 59 Fastest Speed 50 | 50 80 100 100 90 90 Average Speed 100 | 77 90 100 100 95 117 Slowest Speed 750 | 80 100 100 100 100 750 Overloaded Moves . | . . . . . . Propulsion Burnouts . | . . . . . . Robots Hopped . | . . . . . . Cave-ins Triggered . | . . . . . . Exploration Rate (%) 59 | 3 78 99 53 87 38 Regions Visited 5 Branch Regions 3 Pre-discovered Areas 1 | . . 1 . . . Known Exits Taken 1 | . 1 . . . . Unknown Exits Taken 4 | 1 . 1 1 1 . Scrap Searched 3 | . . 2 . 1 . Spaces Dug 4 | . 1 . . . 3 Terrain Destroyed 157 | . 40 11 . 29 77 Melee 3 | . . . . . 3 Projectile 1 | . 1 . . . . AOE 153 | . 39 11 . 29 74 Actions | -11 -10 -10 -10 -9 -8 --------- Run | Scr Mat Min Exi Min Mat Total 3093 | 120 726 572 138 379 1158 Wait 570 | . 175 3 2 . 390 Move 2189 | 70 504 544 134 364 573 Hop . | . . . . . . Pick Up 59 | 11 10 6 2 2 28 Fast Attach . | . . . . . . Attach 35 | 5 2 . . 1 27 Detach 3 | . . . . . 3 Swap 21 | . 7 2 . 2 10 Drop 19 | 1 2 3 . 3 10 Fire 138 | 33 26 14 . 7 58 Melee 59 | . . . . . 59 Ram . | . . . . . . Kick . | . . . . . . Crush . | . . . . . . Escape Stasis . | . . . . . . Rewire . | . . . . . . Trap . | . . . . . . Miscellaneous . | . . . . . . Route ------- -11/Scrapyard -10/Materials (discovered 5 exits: *Mat x3 / *Min x2) -10/Mines (discovered 3 exits: *Mat x2 / [*Exi]) -10/Exiles -9/Mines -8/Materials (discovered 3 exits: *Fac x3) History --------- Turn | Location | Event 19 | -11/Scrapyard | Discovered new exit (range 16) 138 | -11/Scrapyard | Entered Materials 233 | -10/Materials | Discovered new exit (range 13) 300 | -10/Materials | Build established: Mutant 625 | -10/Materials | Discovered new exit (range 10) 813 | -10/Materials | Discovered new exit (range 17) 813 | -10/Materials | Identified exit to Mines 813 | -10/Materials | Identified exit to Materials 871 | -10/Materials | Entered Mines 871 | -10/Mines | Accompanied by 2 allies 891 | -10/Mines | Learned 8 Materials zone layouts 1060 | -10/Mines | Discovered exit to Materials (range 10) 1302 | -10/Mines | Received a Rocket Launcher from a helpful Derelict 1331 | -10/Mines | Learned location of Storage (-7) 1387 | -10/Mines | Discovered exit to Materials (range 8) 1421 | -10/Mines | Deemed a non-threat by the Exiles lab entrance 1421 | -10/Mines | Discovered new exit (range 5) 1459 | -10/Mines | Entered Exiles 1459 | -10/Exiles | Accompanied by 1 ally 1486 | -10/Exiles | Met 8R-AWN 1502 | -10/Exiles | Met EX-HEX 1548 | -10/Exiles | Met EX-DEC 1584 | -10/Exiles | Discovered new exit (range 14) 1597 | -10/Exiles | Entered Mines 1597 | -9/Mines | Accompanied by 1 ally 1614 | -9/Mines | A weapon hastily lodged in a ceiling crevice suddenly fell to the ground 1624 | -9/Mines | Discovered new exit (range 8) 1754 | -9/Mines | Found a damaged Exp. Sensor Array with a note attached 1759 | -9/Mines | Found Prototype Device 1768 | -9/Mines | Learned Materials garrison access intel 1973 | -9/Mines | Entered Materials 1973 | -8/Materials | Accompanied by 1 ally 1973 | -8/Materials | Evolved 4 slots: Propulsion x1, Utility x3 1974 | -8/Materials | Identified exit to Factory 1975 | -8/Materials | Loaded intel: 1 garrison access location 2538 | -8/Materials | Identified Exp. Sensor Array 2857 | -8/Materials | Lost 9 parts (1p5n3w) 2926 | -8/Materials | Core integrity fell below 50% 2979 | -8/Materials | Lost 6 parts (1n3u2w) 3337 | -8/Materials | Core integrity fell below 20% 3364 | -8/Materials | Destroyed by S-10 Pest with Light Assault Rifle Last Messages --------------- 03246_ An explosion rips through the floor. 03246_ Lgt. Ion Engine destroyed. 03266_ Acquired Terrain Scan Processor. 03269_ Acquired 5 matter. 03272_ Acquired Lgt. Ion Engine. 03274_ Acquired 10 matter. 03287_ U-05 Engineer lays Concrete. 03290_ U-05 Engineer builds a Wall. 03292_ U-05 Engineer lays Concrete. 03299_ U-05 Engineer builds a Wall. 03299_ U-05 Engineer lays Concrete. 03311_ Lgt. Ion Engine destroyed. 03316_ S-10 Pest destroyed. 03334_ Lyr. Light Armor Plating destroyed. 03349_ Y-45 Defender suffers critical hit. 03349_ Y-45 Defender destroyed. 03350_ Door malfunctions. 03351_ U-05 Engineer repairs door. 03356_ Sneak attack on U-05 Engineer. 03356_ U-05 Engineer destroyed. Map ----- +----------------------------------------------------+ | ????????????????????????????????????????# # | | ##???????????????????????????????????????? | | " #????????????????????????????????????????? | | "????????????????????????????? | | "????????????????????????????? | | ??????????????????????????????####+########## | | ????????????????????????????????# #????## # | | ????????????????????????????????# #?????# # | | ????????????????????????????????# #?????# # | | ????????????????????????????????# #?????# # | | ????????????????????????????????# #?????# # | | ????????????????????????????????# #?????# # | | ????????????????????????????????########?????# # | | ????????????????????????????????############## # | | ????????????????????????????????# # # | | ????????????????????????????????# """ """ # # | | ????????????????????????????????# """"""""" + # | | ??????????????????????##??????### """"" " # # | | ??????????????????????# ? # # | | ??????????????????????# """"""" # + # | | ??????????????????????# """"""" ############### # | | ??????????????????????# """"""" # #??????# | | ??????????????????????# """"""" # #??????# | | ??????????????????????# """%""" # "" #??????## | | ??????????????????????# %!%=! #= """#??????#### | | ??????????????????????# s@=![!! # S"#????#???## | | ??????????????????????#####+##### #??### ### | | ????????????????????????#=%%% #####+####?## # | | ???????????# #?????#[%%[ !############ | | ???????????# #?????# |=* =% ! % %=!r | | ???????????# """ #?????# !##### = # | | ???????????# """ #?????# ######### # * # | | ###???###### """ #?????## ########### # % /% | | #???# ##+############ # ###+######% | | #???# # # ### | | #???# * ^+ # =#?# | | #???# ############### # """"""" # #?# | | #???## ##############?# <^# """"""" # """ #?## | | #????# # #?# # """"""??# """ #??? | | #????# + """ """ #?##### """"????# """ #??? | | #????# # """"""""" #?????# ""??????########??? | | ######## # """"" " #?????###?????????????????? | | + #?????????????????????????? | | ##############?????????????????????????? | | ########+######??????????????????????????????????? | | # #??????????????????????????????????? | | # T #??????????????????????????????????? | | # ##?????????????????????????????????? | | # """" """" #?????????????????????????????????? | | # """" """" ##?????????????????????????????????? | +----------------------------------------------------+ Best States ------------- Heat Dissipation 31 Energy Generation 10 Energy Capacity 250 Matter Stores 300 Matter Capacity 300 Sight Range 16 Robot Scan Range 16 Terrain Scan Density 10 Additional Mass Support 9 Armor Coverage 150 Evasion (%) 50 Item Schematics ----------------- Exp. Sensor Array | -8/Materials | Scanalyzed System Shield | -8/Materials | Scanalyzed Robot Schematics ------------------ None Fabricated ------------ Nothing Alien Tech Used ----------------- None Achievements -------------- None Challenges ------------ None Game ------ Seed PoweredGhostInsulator Manual? 0 Play Time 00:28:50 Cumulative 167.1 hours Start 2019.11.12 @ 20:43:22 End 2019.11.12 @ 21:10:40 Sessions 1 Manual Loads 0 Difficulty Rogue Special Mode None Game No. 242 Rogue 242 Adventurer 0 Explorer 0 Win Type - Total 1 Types 1/0/0/0/0/0/0 Lore% 48 Gallery% 67 Achievement% 42 Wizard Run 0 Options --------- ASCII 0 Keyboard 0 Movement Numpad Keybinds 0 Fullscreen 1 Font 16/Terminus Map View 75x55 Tactical HUD 1 Map Filters NONE Filters NONE Steam 1 RUN: 4848be85-dcde-476f-aedc-35b732a6dd05